[Event "Titled Tuesday Blitz July 25 Late 2023"]
[White "Omelja, Artem"]
[Black "Carlsen, Magnus"]
[WhiteFideId "14119846"]
[BlackFideId "1503014"]
[WhiteElo "2620"]
[BlackElo "3261"]
[Result "0-1"]
[Round "2"]
[TimeControl "180+2"]
[Date "2023.07.25"]
[WhiteClock "0:00:00"]
[BlackClock "0:01:37"]
[Board "2"]

1. d4 {[%clk 0:03:00]}  a5 {[%clk 0:02:57]} 2. c4 {[%clk 0:02:58]}  g6 {[%clk 0:02:55]} 3. Nc3 {[%clk 0:02:58]}  Bg7 {[%clk 0:02:54]} 4. e4 {[%clk 0:02:58]}  d6 {[%clk 0:02:54]} 5. Nge2 {[%clk 0:02:58]}  e5 {[%clk 0:02:51]} 6. Be3 {[%clk 0:02:57]}  Na6 {[%clk 0:02:47]} 7. f3 {[%clk 0:02:47]}  f5 {[%clk 0:02:39]} 8. Qd2 {[%clk 0:02:37]}  Nf6 {[%clk 0:02:24]} 9. dxe5 {[%clk 0:02:12]}  dxe5 {[%clk 0:02:24]} 10. Qxd8+ {[%clk 0:02:12]}  Kxd8 {[%clk 0:02:24]} 11. O-O-O+ {[%clk 0:02:13]}  Ke8 {[%clk 0:02:22]} 12. g3 {[%clk 0:02:02]}  fxe4 {[%clk 0:02:21]} 13. fxe4 {[%clk 0:01:59]}  Ng4 {[%clk 0:02:19]} 14. Bg1 {[%clk 0:01:53]}  Bh6+ {[%clk 0:02:17]} 15. Kb1 {[%clk 0:01:51]}  Rf8 {[%clk 0:02:16]} 16. Bh3 {[%clk 0:01:28]}  Nf2 {[%clk 0:02:10]} 17. Bxf2 {[%clk 0:01:28]}  Bxh3 {[%clk 0:02:07]} 18. Be1 {[%clk 0:01:16]}  Be3 {[%clk 0:02:05]} 19. Bd2 {[%clk 0:01:06]}  Bf2 {[%clk 0:02:03]} 20. Bh6 {[%clk 0:00:58]}  Rf7 {[%clk 0:02:02]} 21. Rd2 {[%clk 0:00:57]}  c6 {[%clk 0:01:53]} 22. a3 {[%clk 0:00:25]}  Nc5 {[%clk 0:01:45]} 23. b4 {[%clk 0:00:21]}  axb4 {[%clk 0:01:44]} 24. axb4 {[%clk 0:00:22]}  Bg2 {[%clk 0:01:41]} 25. Rhd1 {[%clk 0:00:08]}  Nxe4 {[%clk 0:01:40]} 26. Nxe4 {[%clk 0:00:08]}  Bxe4+ {[%clk 0:01:40]} 27. Kb2 {[%clk 0:00:08]}  Bf3 {[%clk 0:01:38]} 28. Rf1 {[%clk 0:00:06]}  Bxe2 {[%clk 0:01:37]} 29. Rxe2 {[%clk 0:00:01]}  Bd4+ {[%clk 0:01:36]} 30. Kb3 {[%clk 0:00:00]}  Rxf1 {[%clk 0:01:37]} 0-1


[Site "https://www.chess.com"]

[Event "Titled Tuesday Blitz July 25 Late 2023"]
[White "Naroditsky, Daniel"]
[Black "Haydon, David L"]
[WhiteFideId "2026961"]
[BlackFideId "415405"]
[WhiteElo "3150"]
[BlackElo "2619"]
[Result "1/2-1/2"]
[Round "2"]
[TimeControl "180+2"]
[Date "2023.07.25"]
[WhiteClock "0:00:47"]
[BlackClock "0:01:00"]
[Board "3"]

1. e4 {[%clk 0:03:00]}  d5 {[%clk 0:02:58]} 2. exd5 {[%clk 0:03:00]}  Qxd5 {[%clk 0:02:59]} 3. Nc3 {[%clk 0:02:58]}  Qd8 {[%clk 0:02:59]} 4. g3 {[%clk 0:02:55]}  Nf6 {[%clk 0:02:59]} 5. Bg2 {[%clk 0:02:55]}  e6 {[%clk 0:02:58]} 6. d3 {[%clk 0:02:54]}  Be7 {[%clk 0:02:58]} 7. Nge2 {[%clk 0:02:55]}  O-O {[%clk 0:02:58]} 8. O-O {[%clk 0:02:56]}  c5 {[%clk 0:02:58]} 9. Be3 {[%clk 0:02:55]}  Nbd7 {[%clk 0:02:55]} 10. a4 {[%clk 0:02:42]}  Rb8 {[%clk 0:02:48]} 11. a5 {[%clk 0:02:40]}  b6 {[%clk 0:02:42]} 12. axb6 {[%clk 0:02:33]}  axb6 {[%clk 0:02:41]} 13. Ra7 {[%clk 0:02:32]}  b5 {[%clk 0:02:36]} 14. d4 {[%clk 0:02:31]}  Qb6 {[%clk 0:02:19]} 15. Qa1 {[%clk 0:02:13]}  Bb7 {[%clk 0:02:13]} 16. Bxb7 {[%clk 0:02:02]}  Rxb7 {[%clk 0:02:12]} 17. Ra6 {[%clk 0:02:03]}  Qc7 {[%clk 0:02:08]} 18. Rd1 {[%clk 0:01:47]}  b4 {[%clk 0:02:02]} 19. Na4 {[%clk 0:01:47]}  Nd5 {[%clk 0:02:01]} 20. Bd2 {[%clk 0:01:48]}  c4 {[%clk 0:01:56]} 21. Nf4 {[%clk 0:01:48]}  N7f6 {[%clk 0:01:54]} 22. Re1 {[%clk 0:01:49]}  Bd6 {[%clk 0:01:48]} 23. Nxd5 {[%clk 0:01:42]}  Nxd5 {[%clk 0:01:47]} 24. c3 {[%clk 0:01:42]}  Ra7 {[%clk 0:01:29]} 25. Rxa7 {[%clk 0:01:25]}  Qxa7 {[%clk 0:01:28]} 26. Nc5 {[%clk 0:01:26]}  Bxc5 {[%clk 0:01:27]} 27. dxc5 {[%clk 0:01:27]}  Qxc5 {[%clk 0:01:21]} 28. cxb4 {[%clk 0:01:27]}  Nxb4 {[%clk 0:01:21]} 29. Qa3 {[%clk 0:01:11]}  Nd3 {[%clk 0:01:16]} 30. Qxc5 {[%clk 0:01:11]}  Nxc5 {[%clk 0:01:16]} 31. Bc3 {[%clk 0:01:05]}  Rb8 {[%clk 0:01:06]} 32. Ra1 {[%clk 0:01:05]}  Nd3 {[%clk 0:01:04]} 33. Ra4 {[%clk 0:00:47]}  f6 {[%clk 0:01:00]} 1/2-1/2


[Site "https://www.chess.com"]

[Event "Titled Tuesday Blitz July 25 Late 2023"]
[White "Firouzja, Alireza"]
[Black "Pinero Rodriguez, Carlos Jose"]
[WhiteFideId "12573981"]
[BlackFideId "3901726"]
[WhiteElo "3113"]
[BlackElo "2616"]
[Result "1-0"]
[Round "2"]
[TimeControl "180+2"]
[Date "2023.07.25"]
[WhiteClock "0:00:07"]
[BlackClock "0:00:00"]
[Board "5"]

1. e4 {[%clk 0:03:00]}  c5 {[%clk 0:03:00]} 2. Nf3 {[%clk 0:03:01]}  e6 {[%clk 0:02:59]} 3. c3 {[%clk 0:03:01]}  Nf6 {[%clk 0:02:59]} 4. Bd3 {[%clk 0:02:58]}  Nc6 {[%clk 0:02:59]} 5. O-O {[%clk 0:02:55]}  d5 {[%clk 0:02:58]} 6. e5 {[%clk 0:02:55]}  Nd7 {[%clk 0:02:58]} 7. Re1 {[%clk 0:02:54]}  Be7 {[%clk 0:02:59]} 8. Bc2 {[%clk 0:02:53]}  g5 {[%clk 0:02:59]} 9. d4 {[%clk 0:02:41]}  g4 {[%clk 0:02:58]} 10. Nfd2 {[%clk 0:02:39]}  h5 {[%clk 0:02:55]} 11. Nb3 {[%clk 0:02:32]}  cxd4 {[%clk 0:02:55]} 12. cxd4 {[%clk 0:02:33]}  Na5 {[%clk 0:02:36]} 13. Nc3 {[%clk 0:02:31]}  Nxb3 {[%clk 0:02:34]} 14. Bxb3 {[%clk 0:02:32]}  a6 {[%clk 0:02:26]} 15. Bf4 {[%clk 0:02:20]}  Nb6 {[%clk 0:02:15]} 16. a4 {[%clk 0:02:17]}  Rb8 {[%clk 0:01:38]} 17. a5 {[%clk 0:02:17]}  Na8 {[%clk 0:01:38]} 18. Ba4+ {[%clk 0:01:52]}  Bd7 {[%clk 0:01:37]} 19. Nxd5 {[%clk 0:01:50]}  Bxa4 {[%clk 0:01:26]} 20. Qxa4+ {[%clk 0:01:47]}  Qd7 {[%clk 0:01:26]} 21. Nf6+ {[%clk 0:01:35]}  Bxf6 {[%clk 0:01:22]} 22. exf6 {[%clk 0:01:36]}  Rd8 {[%clk 0:01:07]} 23. Qb4 {[%clk 0:01:25]}  Nc7 {[%clk 0:01:00]} 24. Bxc7 {[%clk 0:01:10]}  Qxc7 {[%clk 0:01:00]} 25. Rac1 {[%clk 0:01:11]}  Qd7 {[%clk 0:00:55]} 26. d5 {[%clk 0:01:10]}  Qd6 {[%clk 0:00:51]} 27. Qxd6 {[%clk 0:01:07]}  Rxd6 {[%clk 0:00:51]} 28. dxe6 {[%clk 0:01:06]}  fxe6 {[%clk 0:00:49]} 29. Rc7 {[%clk 0:01:01]}  O-O {[%clk 0:00:49]} 30. Rxb7 {[%clk 0:00:32]}  Rxf6 {[%clk 0:00:49]} 31. Rb6 {[%clk 0:00:32]}  e5 {[%clk 0:00:48]} 32. Rxd6 {[%clk 0:00:29]}  Rxd6 {[%clk 0:00:49]} 33. g3 {[%clk 0:00:28]}  Rd5 {[%clk 0:00:49]} 34. b4 {[%clk 0:00:28]}  Rb5 {[%clk 0:00:48]} 35. Rc1 {[%clk 0:00:20]}  Rxb4 {[%clk 0:00:44]} 36. Rc6 {[%clk 0:00:21]}  Rb1+ {[%clk 0:00:32]} 37. Kg2 {[%clk 0:00:20]}  Ra1 {[%clk 0:00:30]} 38. Rxa6 {[%clk 0:00:20]}  Kg7 {[%clk 0:00:31]} 39. h3 {[%clk 0:00:20]}  Ra2 {[%clk 0:00:29]} 40. hxg4 {[%clk 0:00:17]}  hxg4 {[%clk 0:00:30]} 41. Kf1 {[%clk 0:00:17]}  Ra1+ {[%clk 0:00:26]} 42. Ke2 {[%clk 0:00:17]}  Ra2+ {[%clk 0:00:27]} 43. Kf1 {[%clk 0:00:06]}  Ra1+ {[%clk 0:00:26]} 44. Kg2 {[%clk 0:00:07]}  Ra2 {[%clk 0:00:22]} 45. Ra8 {[%clk 0:00:06]}  Ra1 {[%clk 0:00:18]} 46. a6 {[%clk 0:00:05]}  Ra2 {[%clk 0:00:18]} 47. Kf1 {[%clk 0:00:05]}  Ra1+ {[%clk 0:00:17]} 48. Ke2 {[%clk 0:00:05]}  Ra2+ {[%clk 0:00:17]} 49. Ke3 {[%clk 0:00:06]}  Ra4 {[%clk 0:00:15]} 50. a7 {[%clk 0:00:06]}  Kh7 {[%clk 0:00:15]} 51. Kd3 {[%clk 0:00:06]}  Kg7 {[%clk 0:00:14]} 52. Kc3 {[%clk 0:00:07]}  Kh7 {[%clk 0:00:13]} 53. Kb3 {[%clk 0:00:07]}  Ra1 {[%clk 0:00:14]} 54. Kc4 {[%clk 0:00:08]}  Kg7 {[%clk 0:00:11]} 55. Kd5 {[%clk 0:00:07]}  Ra5+ {[%clk 0:00:09]} 56. Ke6 {[%clk 0:00:07]}  Kh7 {[%clk 0:00:06]} 57. Kf5 {[%clk 0:00:07]}  Ra4 {[%clk 0:00:03]} 58. Kxe5 {[%clk 0:00:07]}  Kg7 {[%clk 0:00:00]} 59. Kf5 {[%clk 0:00:07]} 1-0


[Site "https://www.chess.com"]

[Event "Titled Tuesday Blitz July 25 Late 2023"]
[White "Suvorov, Alexander"]
[Black "Erigaisi Arjun"]
[WhiteFideId "12977063"]
[BlackFideId "35009192"]
[WhiteElo "2610"]
[BlackElo "3087"]
[Result "0-1"]
[Round "2"]
[TimeControl "180+2"]
[Date "2023.07.25"]
[WhiteClock "0:00:50"]
[BlackClock "0:01:33"]
[Board "6"]

1. c4 {[%clk 0:03:00]}  d6 {[%clk 0:02:59]} 2. Nc3 {[%clk 0:03:00]}  g6 {[%clk 0:03:00]} 3. g3 {[%clk 0:03:00]}  Bg7 {[%clk 0:02:59]} 4. Bg2 {[%clk 0:03:01]}  c5 {[%clk 0:03:00]} 5. e3 {[%clk 0:02:55]}  Nc6 {[%clk 0:02:58]} 6. Nge2 {[%clk 0:02:55]}  h5 {[%clk 0:02:57]} 7. h3 {[%clk 0:02:55]}  Be6 {[%clk 0:02:54]} 8. b3 {[%clk 0:02:47]}  Nf6 {[%clk 0:02:54]} 9. d4 {[%clk 0:02:43]}  cxd4 {[%clk 0:02:54]} 10. exd4 {[%clk 0:02:43]}  d5 {[%clk 0:02:54]} 11. Nf4 {[%clk 0:02:35]}  dxc4 {[%clk 0:02:54]} 12. Nxe6 {[%clk 0:02:35]}  fxe6 {[%clk 0:02:54]} 13. Be3 {[%clk 0:02:33]}  Nd5 {[%clk 0:02:49]} 14. Nxd5 {[%clk 0:02:15]}  exd5 {[%clk 0:02:50]} 15. bxc4 {[%clk 0:02:16]}  dxc4 {[%clk 0:02:51]} 16. Qc2 {[%clk 0:02:16]}  Qa5+ {[%clk 0:02:41]} 17. Bd2 {[%clk 0:02:11]}  Qf5 {[%clk 0:02:41]} 18. Be4 {[%clk 0:01:58]}  Nxd4 {[%clk 0:02:39]} 19. Qa4+ {[%clk 0:01:51]}  Qd7 {[%clk 0:02:13]} 20. Bxg6+ {[%clk 0:01:51]}  Kd8 {[%clk 0:02:13]} 21. Qxd7+ {[%clk 0:01:52]}  Kxd7 {[%clk 0:02:14]} 22. O-O-O {[%clk 0:01:52]}  Rad8 {[%clk 0:02:10]} 23. Be3 {[%clk 0:01:48]}  e5 {[%clk 0:02:07]} 24. f4 {[%clk 0:01:45]}  Kc7 {[%clk 0:01:59]} 25. g4 {[%clk 0:01:43]}  Ne2+ {[%clk 0:01:50]} 26. Kc2 {[%clk 0:01:41]}  exf4 {[%clk 0:01:50]} 27. Bf2 {[%clk 0:01:17]}  Rxd1 {[%clk 0:01:34]} 28. Rxd1 {[%clk 0:01:13]}  hxg4 {[%clk 0:01:34]} 29. hxg4 {[%clk 0:01:14]}  Rh2 {[%clk 0:01:35]} 30. Bf5 {[%clk 0:00:50]}  Nd4+ {[%clk 0:01:33]} 0-1


[Site "https://www.chess.com"]

[Event "Titled Tuesday Blitz July 25 Late 2023"]
[White "Ponizil, Cyril"]
[Black "Bluebaum, Matthias"]
[WhiteFideId "322202"]
[BlackFideId "24651516"]
[WhiteElo "2610"]
[BlackElo "3040"]
[Result "0-1"]
[Round "2"]
[TimeControl "180+2"]
[Date "2023.07.25"]
[WhiteClock "0:00:14"]
[BlackClock "0:00:28"]
[Board "8"]

1. e4 {[%clk 0:03:00]}  e6 {[%clk 0:03:00]} 2. d4 {[%clk 0:03:00]}  d5 {[%clk 0:03:00]} 3. exd5 {[%clk 0:03:00]}  exd5 {[%clk 0:03:01]} 4. Nf3 {[%clk 0:03:01]}  Nc6 {[%clk 0:03:02]} 5. c3 {[%clk 0:03:00]}  Bd6 {[%clk 0:03:02]} 6. Bd3 {[%clk 0:02:56]}  Nge7 {[%clk 0:03:02]} 7. O-O {[%clk 0:02:56]}  Bg4 {[%clk 0:03:02]} 8. Nbd2 {[%clk 0:02:53]}  Qd7 {[%clk 0:03:02]} 9. Re1 {[%clk 0:02:48]}  f6 {[%clk 0:03:03]} 10. Nf1 {[%clk 0:02:47]}  O-O-O {[%clk 0:03:02]} 11. b4 {[%clk 0:02:30]}  Ng6 {[%clk 0:03:02]} 12. Ne3 {[%clk 0:02:29]}  Be6 {[%clk 0:03:01]} 13. Qc2 {[%clk 0:02:25]}  Nf4 {[%clk 0:03:00]} 14. Bf5 {[%clk 0:02:23]}  Rde8 {[%clk 0:02:55]} 15. Bd2 {[%clk 0:02:17]}  g6 {[%clk 0:02:45]} 16. Bxe6 {[%clk 0:02:17]}  Rxe6 {[%clk 0:02:46]} 17. Nf1 {[%clk 0:02:11]}  Rxe1 {[%clk 0:02:19]} 18. Rxe1 {[%clk 0:02:10]}  Re8 {[%clk 0:02:20]} 19. Bxf4 {[%clk 0:02:08]}  Bxf4 {[%clk 0:02:15]} 20. g3 {[%clk 0:01:59]}  Bd6 {[%clk 0:02:14]} 21. Rxe8+ {[%clk 0:01:59]}  Qxe8 {[%clk 0:02:15]} 22. Ne3 {[%clk 0:01:56]}  Qe6 {[%clk 0:02:16]} 23. Kg2 {[%clk 0:01:54]}  Ne7 {[%clk 0:02:16]} 24. Qd3 {[%clk 0:01:45]}  c6 {[%clk 0:02:16]} 25. h4 {[%clk 0:01:42]}  h6 {[%clk 0:02:10]} 26. h5 {[%clk 0:01:40]}  f5 {[%clk 0:01:51]} 27. hxg6 {[%clk 0:01:37]}  f4 {[%clk 0:01:51]} 28. gxf4 {[%clk 0:01:21]}  Nxg6 {[%clk 0:01:51]} 29. Qf5 {[%clk 0:01:15]}  Nxf4+ {[%clk 0:01:51]} 30. Kf1 {[%clk 0:01:15]}  Qxf5 {[%clk 0:01:45]} 31. Nxf5 {[%clk 0:01:15]}  Bf8 {[%clk 0:01:46]} 32. Ne5 {[%clk 0:01:09]}  h5 {[%clk 0:01:40]} 33. f3 {[%clk 0:01:09]}  Kc7 {[%clk 0:01:35]} 34. Kf2 {[%clk 0:01:09]}  Bd6 {[%clk 0:01:31]} 35. Ke3 {[%clk 0:01:02]}  Ng2+ {[%clk 0:01:30]} 36. Kf2 {[%clk 0:01:02]}  Nf4 {[%clk 0:01:31]} 37. Ke3 {[%clk 0:01:02]}  Ne6 {[%clk 0:01:31]} 38. f4 {[%clk 0:00:58]}  b6 {[%clk 0:01:27]} 39. Kf3 {[%clk 0:00:50]}  a5 {[%clk 0:01:26]} 40. a3 {[%clk 0:00:49]}  a4 {[%clk 0:01:23]} 41. Ng3 {[%clk 0:00:44]}  h4 {[%clk 0:01:18]} 42. Nh5 {[%clk 0:00:36]}  c5 {[%clk 0:01:17]} 43. f5 {[%clk 0:00:28]}  cxd4 {[%clk 0:01:17]} 44. fxe6 {[%clk 0:00:26]}  Bxe5 {[%clk 0:01:18]} 45. cxd4 {[%clk 0:00:20]}  Bxd4 {[%clk 0:01:19]} 46. Nf4 {[%clk 0:00:21]}  Kd6 {[%clk 0:01:13]} 47. Nxd5 {[%clk 0:00:20]}  Kxe6 {[%clk 0:01:08]} 48. Ke4 {[%clk 0:00:20]}  Bg1 {[%clk 0:00:52]} 49. b5 {[%clk 0:00:17]}  h3 {[%clk 0:00:37]} 50. Nf4+ {[%clk 0:00:16]}  Kd6 {[%clk 0:00:38]} 51. Nxh3 {[%clk 0:00:16]}  Bc5 {[%clk 0:00:39]} 52. Nf4 {[%clk 0:00:16]}  Bxa3 {[%clk 0:00:39]} 53. Ne2 {[%clk 0:00:16]}  Kc5 {[%clk 0:00:37]} 54. Nc3 {[%clk 0:00:15]}  Kb4 {[%clk 0:00:38]} 55. Na2+ {[%clk 0:00:14]}  Kxb5 {[%clk 0:00:38]} 56. Kd3 {[%clk 0:00:15]}  Bb2 {[%clk 0:00:36]} 57. Kc2 {[%clk 0:00:15]}  Be5 {[%clk 0:00:35]} 58. Nc1 {[%clk 0:00:15]}  Kc4 {[%clk 0:00:36]} 59. Kb1 {[%clk 0:00:15]}  b5 {[%clk 0:00:36]} 60. Ka2 {[%clk 0:00:15]}  b4 {[%clk 0:00:36]} 61. Kb1 {[%clk 0:00:16]}  b3 {[%clk 0:00:36]} 62. Ne2 {[%clk 0:00:16]}  a3 {[%clk 0:00:30]} 63. Nc1 {[%clk 0:00:14]}  Bf4 {[%clk 0:00:28]} 0-1


[Site "https://www.chess.com"]

[Event "Titled Tuesday Blitz July 25 Late 2023"]
[White "Zavgorodniy, Sergiy"]
[Black "Grischuk, Alexander"]
[WhiteFideId "14110148"]
[BlackFideId "4126025"]
[WhiteElo "2605"]
[BlackElo "3030"]
[Result "0-1"]
[Round "2"]
[TimeControl "180+2"]
[Date "2023.07.25"]
[WhiteClock "0:00:23"]
[BlackClock "0:00:12"]
[Board "10"]

1. d4 {[%clk 0:03:00]}  e6 {[%clk 0:03:00]} 2. c4 {[%clk 0:03:01]}  b6 {[%clk 0:03:00]} 3. Nf3 {[%clk 0:03:00]}  Bb7 {[%clk 0:03:00]} 4. Nbd2 {[%clk 0:03:00]}  Nf6 {[%clk 0:02:56]} 5. g3 {[%clk 0:03:01]}  c5 {[%clk 0:02:54]} 6. dxc5 {[%clk 0:02:51]}  Bxc5 {[%clk 0:02:54]} 7. Bg2 {[%clk 0:02:50]}  O-O {[%clk 0:02:53]} 8. O-O {[%clk 0:02:50]}  Na6 {[%clk 0:02:32]} 9. a3 {[%clk 0:02:50]}  Be7 {[%clk 0:02:25]} 10. b4 {[%clk 0:02:50]}  Nb8 {[%clk 0:02:20]} 11. Bb2 {[%clk 0:02:50]}  d6 {[%clk 0:02:15]} 12. Rc1 {[%clk 0:02:47]}  Nbd7 {[%clk 0:02:13]} 13. e3 {[%clk 0:02:43]}  Qc7 {[%clk 0:02:12]} 14. Nd4 {[%clk 0:02:41]}  Bxg2 {[%clk 0:02:09]} 15. Kxg2 {[%clk 0:02:42]}  Rac8 {[%clk 0:02:09]} 16. Qe2 {[%clk 0:02:42]}  a6 {[%clk 0:02:01]} 17. Rfd1 {[%clk 0:02:40]}  Ne5 {[%clk 0:02:00]} 18. h3 {[%clk 0:02:37]}  Qb7+ {[%clk 0:02:00]} 19. e4 {[%clk 0:02:36]}  Rc7 {[%clk 0:01:58]} 20. Kh2 {[%clk 0:02:35]}  Rfc8 {[%clk 0:01:53]} 21. f4 {[%clk 0:02:35]}  Nc6 {[%clk 0:01:49]} 22. N4f3 {[%clk 0:02:27]}  a5 {[%clk 0:01:33]} 23. b5 {[%clk 0:02:16]}  Nb8 {[%clk 0:01:33]} 24. Nd4 {[%clk 0:02:14]}  h6 {[%clk 0:01:14]} 25. f5 {[%clk 0:02:08]}  e5 {[%clk 0:01:11]} 26. Nc2 {[%clk 0:02:03]}  Nbd7 {[%clk 0:01:10]} 27. Re1 {[%clk 0:01:44]}  d5 {[%clk 0:00:53]} 28. exd5 {[%clk 0:01:39]}  Nxd5 {[%clk 0:00:53]} 29. Bxe5 {[%clk 0:01:24]}  Nxe5 {[%clk 0:00:52]} 30. Qxe5 {[%clk 0:01:25]}  Bg5 {[%clk 0:00:45]} 31. Ne4 {[%clk 0:01:14]}  Rxc4 {[%clk 0:00:30]} 32. Re2 {[%clk 0:00:33]}  Bxc1 {[%clk 0:00:17]} 33. Nd6 {[%clk 0:00:34]}  Qa8 {[%clk 0:00:16]} 34. Nxc8 {[%clk 0:00:32]}  Rxc8 {[%clk 0:00:16]} 35. Nd4 {[%clk 0:00:29]}  Bxa3 {[%clk 0:00:12]} 36. Nc6 {[%clk 0:00:29]}  Nf6 {[%clk 0:00:12]} 37. Ne7+ {[%clk 0:00:28]}  Bxe7 {[%clk 0:00:12]} 38. Qxe7 {[%clk 0:00:23]}  Re8 {[%clk 0:00:12]} 0-1


[Site "https://www.chess.com"]

[Event "Titled Tuesday Blitz July 25 Late 2023"]
[White "Duda, Jan-Krzysztof"]
[Black "Piesik, Piotr"]
[WhiteFideId "1170546"]
[BlackFideId "1136194"]
[WhiteElo "3024"]
[BlackElo "2597"]
[Result "1-0"]
[Round "2"]
[TimeControl "180+2"]
[Date "2023.07.25"]
[WhiteClock "0:02:14"]
[BlackClock "0:01:59"]
[Board "13"]

1. b3 {[%clk 0:03:00]}  d5 {[%clk 0:02:58]} 2. Bb2 {[%clk 0:03:01]}  c5 {[%clk 0:02:58]} 3. e3 {[%clk 0:03:00]}  a6 {[%clk 0:02:58]} 4. Nf3 {[%clk 0:02:57]}  Nc6 {[%clk 0:02:58]} 5. d4 {[%clk 0:02:52]}  cxd4 {[%clk 0:02:57]} 6. Nxd4 {[%clk 0:02:53]}  Nxd4 {[%clk 0:02:55]} 7. Qxd4 {[%clk 0:02:52]}  Nf6 {[%clk 0:02:53]} 8. Nd2 {[%clk 0:02:47]}  e6 {[%clk 0:02:52]} 9. Bd3 {[%clk 0:02:37]}  Qa5 {[%clk 0:02:51]} 10. a3 {[%clk 0:02:30]}  Bc5 {[%clk 0:02:43]} 11. Qh4 {[%clk 0:02:28]}  Qd8 {[%clk 0:02:42]} 12. O-O {[%clk 0:02:23]}  Be7 {[%clk 0:02:42]} 13. Rfd1 {[%clk 0:02:20]}  Bd7 {[%clk 0:02:26]} 14. c4 {[%clk 0:02:18]}  Bc6 {[%clk 0:02:19]} 15. Rac1 {[%clk 0:02:16]}  O-O {[%clk 0:01:59]} 16. Bxf6 {[%clk 0:02:14]} 1-0


[Site "https://www.chess.com"]

[Event "Titled Tuesday Blitz July 25 Late 2023"]
[White "Krishnan, Varun"]
[Black "Paravyan, David"]
[WhiteFideId "5054508"]
[BlackFideId "4194985"]
[WhiteElo "2592"]
[BlackElo "3021"]
[Result "0-1"]
[Round "2"]
[TimeControl "180+2"]
[Date "2023.07.25"]
[WhiteClock "0:00:02"]
[BlackClock "0:00:39"]
[Board "14"]

1. e4 {[%clk 0:03:00]}  e5 {[%clk 0:02:59]} 2. Nf3 {[%clk 0:02:58]}  Nf6 {[%clk 0:02:59]} 3. Nxe5 {[%clk 0:02:56]}  d6 {[%clk 0:02:59]} 4. Nf3 {[%clk 0:02:56]}  Nxe4 {[%clk 0:03:00]} 5. Nc3 {[%clk 0:02:57]}  Nxc3 {[%clk 0:03:00]} 6. dxc3 {[%clk 0:02:58]}  Be7 {[%clk 0:03:01]} 7. Be3 {[%clk 0:02:57]}  O-O {[%clk 0:03:02]} 8. Qd2 {[%clk 0:02:58]}  Nd7 {[%clk 0:03:02]} 9. O-O-O {[%clk 0:02:58]}  c6 {[%clk 0:03:03]} 10. h4 {[%clk 0:02:58]}  d5 {[%clk 0:03:02]} 11. h5 {[%clk 0:02:58]}  h6 {[%clk 0:03:02]} 12. Nd4 {[%clk 0:02:49]}  Nf6 {[%clk 0:03:01]} 13. f3 {[%clk 0:02:49]}  c5 {[%clk 0:03:01]} 14. Nb3 {[%clk 0:02:46]}  b6 {[%clk 0:02:56]} 15. g4 {[%clk 0:02:45]}  d4 {[%clk 0:02:50]} 16. cxd4 {[%clk 0:02:42]}  Nd5 {[%clk 0:02:51]} 17. Kb1 {[%clk 0:02:37]}  Bb7 {[%clk 0:02:33]} 18. Bd3 {[%clk 0:02:23]}  Nxe3 {[%clk 0:02:28]} 19. Qxe3 {[%clk 0:02:21]}  Qc7 {[%clk 0:01:45]} 20. Be4 {[%clk 0:02:13]}  Bxe4 {[%clk 0:01:40]} 21. Qxe4 {[%clk 0:02:03]}  c4 {[%clk 0:01:40]} 22. Nc1 {[%clk 0:02:00]}  c3 {[%clk 0:01:38]} 23. b3 {[%clk 0:01:58]}  a5 {[%clk 0:01:30]} 24. Rd3 {[%clk 0:01:48]}  a4 {[%clk 0:01:27]} 25. Re1 {[%clk 0:01:22]}  Bg5 {[%clk 0:01:20]} 26. Qe5 {[%clk 0:01:09]}  Qa7 {[%clk 0:01:16]} 27. f4 {[%clk 0:01:08]}  Bf6 {[%clk 0:01:11]} 28. Qb5 {[%clk 0:01:05]}  axb3 {[%clk 0:01:12]} 29. Qxb3 {[%clk 0:01:00]}  b5 {[%clk 0:01:04]} 30. d5 {[%clk 0:00:56]}  Qc5 {[%clk 0:01:03]} 31. Re4 {[%clk 0:00:49]}  Ra3 {[%clk 0:00:56]} 32. Qb4 {[%clk 0:00:48]}  Qa7 {[%clk 0:00:55]} 33. Rde3 {[%clk 0:00:39]}  Qa8 {[%clk 0:00:45]} 34. g5 {[%clk 0:00:20]}  hxg5 {[%clk 0:00:44]} 35. h6 {[%clk 0:00:19]}  gxh6 {[%clk 0:00:43]} 36. fxg5 {[%clk 0:00:18]}  Bxg5 {[%clk 0:00:43]} 37. Rd3 {[%clk 0:00:16]}  Ra4 {[%clk 0:00:43]} 38. Qd6 {[%clk 0:00:06]}  Rxe4 {[%clk 0:00:43]} 39. Qb6 {[%clk 0:00:02]}  Qa3 {[%clk 0:00:39]} 0-1


[Site "https://www.chess.com"]

[Event "Titled Tuesday Blitz July 25 Late 2023"]
[White "Dobrikov, Marco"]
[Black "Kevlishvili, Robby"]
[WhiteFideId "12950378"]
[BlackFideId "1040634"]
[WhiteElo "2591"]
[BlackElo "3010"]
[Result "0-1"]
[Round "2"]
[TimeControl "180+2"]
[Date "2023.07.25"]
[WhiteClock "0:01:02"]
[BlackClock "0:00:34"]
[Board "15"]

1. d4 {[%clk 0:03:00]}  Nf6 {[%clk 0:03:00]} 2. Bf4 {[%clk 0:02:59]}  g6 {[%clk 0:02:59]} 3. e3 {[%clk 0:02:59]}  Bg7 {[%clk 0:02:59]} 4. c3 {[%clk 0:03:00]}  O-O {[%clk 0:03:00]} 5. Nd2 {[%clk 0:03:00]}  d6 {[%clk 0:03:00]} 6. Ngf3 {[%clk 0:03:01]}  b6 {[%clk 0:03:00]} 7. h3 {[%clk 0:03:01]}  Bb7 {[%clk 0:03:00]} 8. Be2 {[%clk 0:03:01]}  Nbd7 {[%clk 0:03:01]} 9. O-O {[%clk 0:03:02]}  Re8 {[%clk 0:03:01]} 10. Bh2 {[%clk 0:03:02]}  c5 {[%clk 0:02:58]} 11. Re1 {[%clk 0:03:02]}  Rc8 {[%clk 0:02:57]} 12. Rc1 {[%clk 0:03:02]}  Qc7 {[%clk 0:02:56]} 13. Qb3 {[%clk 0:03:02]}  Qb8 {[%clk 0:02:56]} 14. Ng5 {[%clk 0:03:02]}  Bd5 {[%clk 0:02:44]} 15. Bc4 {[%clk 0:02:58]}  Bxc4 {[%clk 0:02:39]} 16. Nxc4 {[%clk 0:02:56]}  Rf8 {[%clk 0:02:37]} 17. e4 {[%clk 0:02:50]}  h6 {[%clk 0:02:36]} 18. Nf3 {[%clk 0:02:50]}  b5 {[%clk 0:02:31]} 19. Ncd2 {[%clk 0:02:46]}  c4 {[%clk 0:02:27]} 20. Qa3 {[%clk 0:02:41]}  e5 {[%clk 0:02:14]} 21. Nf1 {[%clk 0:02:37]}  Rfe8 {[%clk 0:02:13]} 22. dxe5 {[%clk 0:02:34]}  Nxe5 {[%clk 0:02:09]} 23. Nxe5 {[%clk 0:02:25]}  dxe5 {[%clk 0:02:10]} 24. Rcd1 {[%clk 0:02:25]}  Bf8 {[%clk 0:02:03]} 25. Qa5 {[%clk 0:02:18]}  Bc5 {[%clk 0:01:56]} 26. a4 {[%clk 0:01:56]}  bxa4 {[%clk 0:01:54]} 27. Qxa4 {[%clk 0:01:54]}  Qxb2 {[%clk 0:01:54]} 28. Bg3 {[%clk 0:01:54]}  Nh5 {[%clk 0:01:44]} 29. Kh2 {[%clk 0:01:52]}  Bxf2 {[%clk 0:01:36]} 30. Bxf2 {[%clk 0:01:49]}  Qxf2 {[%clk 0:01:36]} 31. Ne3 {[%clk 0:01:42]}  Red8 {[%clk 0:01:26]} 32. Nd5 {[%clk 0:01:41]}  Nf4 {[%clk 0:01:20]} 33. Nxf4 {[%clk 0:01:21]}  exf4 {[%clk 0:01:18]} 34. Rf1 {[%clk 0:01:18]}  Qg3+ {[%clk 0:01:18]} 35. Kh1 {[%clk 0:01:18]}  Rxd1 {[%clk 0:01:14]} 36. Qxd1 {[%clk 0:01:19]}  Qxc3 {[%clk 0:01:13]} 37. Rxf4 {[%clk 0:01:19]}  Qd3 {[%clk 0:01:11]} 38. Qg4 {[%clk 0:01:14]}  Rd8 {[%clk 0:01:07]} 39. e5 {[%clk 0:01:14]}  Qd1+ {[%clk 0:00:57]} 40. Qxd1 {[%clk 0:01:12]}  Rxd1+ {[%clk 0:00:58]} 41. Kh2 {[%clk 0:01:12]}  Rc1 {[%clk 0:00:59]} 42. Rf6 {[%clk 0:01:09]}  c3 {[%clk 0:00:57]} 43. e6 {[%clk 0:01:09]}  fxe6 {[%clk 0:00:56]} 44. Rxe6 {[%clk 0:01:10]}  c2 {[%clk 0:00:36]} 45. Rxg6+ {[%clk 0:01:10]}  Kf7 {[%clk 0:00:36]} 46. Rc6 {[%clk 0:01:10]}  a5 {[%clk 0:00:37]} 47. Rc4 {[%clk 0:01:09]}  a4 {[%clk 0:00:35]} 48. Rxa4 {[%clk 0:01:02]}  Rd1 {[%clk 0:00:34]} 0-1


[Site "https://www.chess.com"]